[Event "DVM U10 2024"]
[Site "Duesseldorf"]
[Date "2024.12.28"]
[Round "5"]
[White "Yuksel, Arda Eren"]
[Black "Wüstenberg, Jan"]
[Result "0-1"]
[ECO "A34"]
[WhiteElo "1488"]
[BlackElo "1221"]
[Annotator "NA RC"]
[PlyCount "80"]
[EventDate "2024.12.23"]
[EventType "team-tourn"]
[EventRounds "7"]
[EventCountry "GER"]
[SourceTitle "playchess.com"]
[Source "ChessBase"]
[SourceQuality "1"]
[TimeControl "3300+5"]

1. e4 {[%emt 0:00:06]} c5 {[%emt 0:00:13]} 2. c4 {[%emt 0:00:09]} d6 {[%emt 0:00:15]} 3. d3 {[%emt 0:00:44]} Nf6 {[%emt 0:00:13]} 4. Nc3 {[%emt 0:00:41]} a6 {[%emt 0:00:08]} 5. a4 {[%emt 0:01:26]} Nbd7 {[%emt 0:00:23]} 6. f4 {[%emt 0:00:57]} e6 {[%emt 0:00:40]} 7. Nf3 {[%emt 0:00:54]} e5 {[%emt 0:00:35]} 8. f5 {[%emt 0:01:23]} Be7 {[%emt 0:00:16]} 9. Be2 {[%emt 0:01:15]} b6 {[%emt 0:00:52]} 10. O-O {[%emt 0:01:20]} Bb7 {[%emt 0:01:00]} 11. b3 {[%emt 0:05:13]} Nh5 {[%emt 0:00:38]} 12. Nxe5 {[%emt 0:02:13]} Nf4 {[%emt 0:00:32]} 13. Bxf4 {[%emt 0:00:57]} Nxe5 {[%emt 0:00:10]} 14. Bxe5 {[%emt 0:00:41]} dxe5 {[%emt 0:00:16]} 15. Bh5 {[%emt 0:01:06]} Qd4+ {[%emt 0:00:19]} 16. Kh1 {[%emt 0:02:33]} Qxc3 {[%emt 0:00:08]} 17. Rc1 {[%emt 0:01:09]} Qd4 {[%emt 0:03:00]} 18. Qf3 {[%emt 0:01:41]} Qd8 {[%emt 0:03:34]} 19. g3 {[%emt 0:04:07]} Bg5 {[%emt 0:00:23]} 20. Rc2 {[%emt 0:01:05]} Qd7 {[%emt 0:04:52]} 21. Bg4 {[%emt 0:02:41]} Qd6 {[%emt 0:01:15]} 22. Bh5 {[%emt 0:02:54]} Rd8 {[%emt 0:00:09]} 23. Rd1 {[%emt 0:01:41]} Qd7 {[%emt 0:08:15]} 24. Rf2 {[%emt 0:02:33]} Bf6 {[%emt 0:09:36]} 25. h4 {[%emt 0:03:05]} b5 {[%emt 0:04:51]} 26. axb5 {[%emt 0:00:54]} axb5 {[%emt 0:00:05]} 27. Rff1 {[%emt 0:01:11]} bxc4 {[%emt 0:01:08]} 28. dxc4 {[%emt 0:00:28]} Qc8 {[%emt 0:00:29]} 29. Rxd8+ {[%emt 0:00:55]} Qxd8 {[%emt 0:00:08]} 30. Rd1 {[%emt 0:00:23]} Qa8 {[%emt 0:00:07]} 31. Re1 {[%emt 0:01:35]} Ke7 {[%emt 0:00:54]} 32. g4 {[%emt 0:00:48]} Bxh4 {[%emt 0:00:31]} 33. Re2 {[%emt 0:01:05]} g6 {[%emt 0:00:24]} 34. fxg6 {[%emt 0:00:28]} hxg6 {[%emt 0:00:09]} 35. g5 {[%emt 0:00:33]} Rxh5 {[%emt 0:00:39]} 36. Qf6+ {[%emt 0:00:17]} Kf8 {[%emt 0:00:42]} 37. Rd2 {[%emt 0:01:01]} Bxg5+ {[%emt 0:00:09]} 38. Kg2 {[%emt 0:00:40]} Bxf6 {[%emt 0:00:05]} 39. Rf2 {[%emt 0:00:38]} Bg7 {[%emt 0:00:04]} 40. Kg3 {[%emt 0:00:13]} Qa3 {[%emt 0:00:14]} 0-1

[Event "DVM U10 2024"]
[Site "Duesseldorf"]
[Date "2024.12.28"]
[Round "5"]
[White "Gheng, Hannes Lucas"]
[Black "Essers, Mathilda Marie"]
[Result "1-0"]
[ECO "B22"]
[WhiteElo "1482"]
[BlackElo "1435"]
[Annotator "NA RC"]
[PlyCount "117"]
[EventDate "2024.12.23"]
[EventType "team-tourn"]
[EventRounds "7"]
[EventCountry "GER"]
[SourceTitle "playchess.com"]
[Source "ChessBase"]
[SourceQuality "1"]
[TimeControl "3300+5"]

1. e4 {[%emt 0:00:03]} c5 {[%emt 0:00:07]} 2. d4 {[%emt 0:00:05]} cxd4 {[%emt 0:00:06]} 3. c3 {[%emt 0:00:03]} Nf6 {[%emt 0:00:14]} 4. e5 {[%emt 0:00:18]} Nd5 {[%emt 0:00:14]} 5. cxd4 {[%emt 0:00:30]} e6 {[%emt 0:00:10]} 6. Nf3 {[%emt 0:00:12]} b6 {[%emt 0:00:15]} 7. Bd3 {[%emt 0:01:12]} Be7 {[%emt 0:00:21]} 8. Bd2 {[%emt 0:00:20]} O-O {[%emt 0:00:25]} 9. O-O {[%emt 0:00:06]} Bb7 {[%emt 0:00:09]} 10. Nc3 {[%emt 0:00:29]} Nxc3 {[%emt 0:00:21]} 11. Bxc3 {[%emt 0:00:13]} Nc6 {[%emt 0:00:27]} 12. Qc2 {[%emt 0:00:24]} g6 {[%emt 0:00:24]} 13. Qd2 {[%emt 0:00:20]} Kh8 {[%emt 0:00:44]} 14. Qh6 {[%emt 0:00:27]} Rg8 {[%emt 0:00:23]} 15. h4 {[%emt 0:01:40]} Bf8 {[%emt 0:00:20]} 16. Qf4 {[%emt 0:00:50]} Bg7 {[%emt 0:00:15]} 17. Ng5 {[%emt 0:00:18]} Rf8 {[%emt 0:00:39]} 18. Nxf7+ {[%emt 0:00:45]} Rxf7 {[%emt 0:00:20]} 19. Qxf7 {[%emt 0:00:07]} Qxh4 {[%emt 0:01:26]} 20. Qxd7 {[%emt 0:00:33]} Rb8 {[%emt 0:00:31]} 21. Qxe6 {[%emt 0:00:39]} Nxd4 {[%emt 0:00:46]} 22. Bxd4 {[%emt 0:01:56]} Qxd4 {[%emt 0:00:24]} 23. Qh3 {[%emt 0:00:22]} Qxe5 {[%emt 0:01:17]} 24. Bxg6 {[%emt 0:00:37]} Kg8 {[%emt 0:00:57]} 25. Qxh7+ {[%emt 0:01:20]} Kf8 {[%emt 0:00:30]} 26. Qh3 {[%emt 0:00:33]} Qxb2 {[%emt 0:01:05]} 27. Qf5+ {[%emt 0:03:59]} Qf6 {[%emt 0:00:11]} 28. Qxf6+ {[%emt 0:00:08]} Bxf6 {[%emt 0:00:06]} 29. Bh5 {[%emt 0:00:13]} Bxa1 {[%emt 0:00:11]} 30. Rxa1 {[%emt 0:00:13]} b5 {[%emt 0:00:50]} 31. Rb1 {[%emt 0:00:06]} a6 {[%emt 0:00:24]} 32. a4 {[%emt 0:00:13]} bxa4 {[%emt 0:00:19]} 33. Bf3 {[%emt 0:00:05]} a3 {[%emt 0:00:26]} 34. Bd5 {[%emt 0:03:57]} Ke7 {[%emt 0:00:40]} 35. Ba2 {[%emt 0:01:43]} Kd8 {[%emt 0:00:47]} 36. g4 {[%emt 0:01:01]} Kc7 {[%emt 0:00:22]} 37. g5 {[%emt 0:00:18]} Be4 {[%emt 0:03:30]} 38. Rxb8 {[%emt 0:01:33]} Kxb8 {[%emt 0:00:07]} 39. f3 {[%emt 0:00:09]} Bg6 {[%emt 0:00:25]} 40. Kg2 {[%emt 0:00:11]} Kc7 {[%emt 0:00:10]} 41. Kg3 {[%emt 0:00:13]} Kd6 {[%emt 0:00:09]} 42. Kg4 {[%emt 0:00:21]} Ke5 {[%emt 0:00:24]} 43. f4+ {[%emt 0:00:06]} Ke4 {[%emt 0:01:19]} 44. Bb1+ {[%emt 0:00:43]} Ke3 {[%emt 0:00:12]} 45. f5 {[%emt 0:00:15]} Bxf5+ {[%emt 0:00:20]} 46. Kxf5 {[%emt 0:00:09]} Kd2 {[%emt 0:00:12]} 47. g6 {[%emt 0:00:43]} Kc1 {[%emt 0:00:04]} 48. Ba2 {[%emt 0:00:11]} Kb2 {[%emt 0:00:04]} 49. Be6 {[%emt 0:00:05]} a5 {[%emt 0:00:15]} 50. g7 {[%emt 0:00:05]} a4 {[%emt 0:00:06]} 51. g8=Q {[%emt 0:00:08]} Ka1 {[%emt 0:00:15]} 52. Qg2 {[%emt 0:02:04]} Kb1 {[%emt 0:00:00]} 53. Qa2+ {[%emt 0:00:15]} Kc1 {[%emt 0:00:08]} 54. Qxa3+ {[%emt 0:00:06]} Kd1 {[%emt 0:00:06]} 55. Qxa4+ {[%emt 0:00:33]} Kd2 {[%emt 0:00:06]} 56. Ke4 {[%emt 0:00:13]} Ke2 {[%emt 0:00:12]} 57. Qc2+ {[%emt 0:00:07]} Kf1 {[%emt 0:00:12]} 58. Kf3 {[%emt 0:00:09]} Ke1 {[%emt 0:00:13]} 59. Qe2# {[%emt 0:00:15]} 1-0

[Event "DVM U10 2024"]
[Site "Duesseldorf"]
[Date "2024.12.28"]
[Round "5"]
[White "Huang, Flora Yueya"]
[Black "Vlad, Mark"]
[Result "1-0"]
[ECO "A52"]
[WhiteElo "1481"]
[BlackElo "1439"]
[Annotator "NA RC"]
[PlyCount "73"]
[EventDate "2024.12.23"]
[EventType "team-tourn"]
[EventRounds "7"]
[EventCountry "GER"]
[SourceTitle "playchess.com"]
[Source "ChessBase"]
[SourceQuality "1"]
[TimeControl "3300+5"]

1. d4 {[%emt 0:00:02]} Nf6 {[%emt 0:00:06]} 2. c4 {[%emt 0:00:05]} e5 {[%emt 0:00:04]} 3. dxe5 {[%emt 0:00:14]} Ng4 {[%emt 0:00:08]} 4. Nf3 {[%emt 0:00:39]} Nc6 {[%emt 0:00:11]} 5. Bf4 {[%emt 0:00:20]} Qe7 {[%emt 0:00:34]} 6. Nc3 {[%emt 0:00:28]} Ngxe5 {[%emt 0:00:19]} 7. Nxe5 {[%emt 0:00:11]} Nxe5 {[%emt 0:00:07]} 8. e3 {[%emt 0:01:00]} Ng6 {[%emt 0:00:41]} 9. Nd5 {[%emt 0:01:53]} Qc5 {[%emt 0:03:02]} 10. Nxc7+ {[%emt 0:01:21]} Kd8 {[%emt 0:00:19]} 11. Nxa8 {[%emt 0:00:21]} Qa5+ {[%emt 0:00:16]} 12. Ke2 {[%emt 0:00:46]} Nxf4+ {[%emt 0:00:56]} 13. exf4 {[%emt 0:00:08]} Qh5+ {[%emt 0:00:43]} 14. f3 {[%emt 0:00:52]} Bc5 {[%emt 0:02:58]} 15. Qd5 {[%emt 0:00:10]} Re8+ {[%emt 0:01:15]} 16. Kd1 {[%emt 0:01:19]} Qxd5+ {[%emt 0:04:13]} 17. cxd5 {[%emt 0:00:04]} Bb4 {[%emt 0:00:36]} 18. Bd3 {[%emt 0:01:13]} d6 {[%emt 0:01:35]} 19. a3 {[%emt 0:00:04]} Ba5 {[%emt 0:00:59]} 20. b4 {[%emt 0:00:06]} Bc7 {[%emt 0:00:50]} 21. Nxc7 {[%emt 0:00:12]} Kxc7 {[%emt 0:00:19]} 22. Re1 {[%emt 0:00:07]} Rd8 {[%emt 0:01:06]} 23. Re7+ {[%emt 0:00:09]} Kb6 {[%emt 0:00:28]} 24. Rxf7 {[%emt 0:00:31]} Bd7 {[%emt 0:02:21]} 25. Rxg7 {[%emt 0:00:21]} Ba4+ {[%emt 0:01:20]} 26. Kd2 {[%emt 0:00:05]} Rf8 {[%emt 0:01:44]} 27. f5 {[%emt 0:00:38]} a5 {[%emt 0:00:46]} 28. g4 {[%emt 0:00:31]} Re8 {[%emt 0:01:14]} 29. f6 {[%emt 0:00:12]} Bb3 {[%emt 0:00:33]} 30. f7 {[%emt 0:00:24]} Rf8 {[%emt 0:00:19]} 31. Bxh7 {[%emt 0:00:26]} Bxd5 {[%emt 0:00:25]} 32. Bg8 {[%emt 0:00:05]} Kc7 {[%emt 0:00:42]} 33. h4 {[%emt 0:00:09]} Kd7 {[%emt 0:00:09]} 34. h5 {[%emt 0:00:03]} Ke7 {[%emt 0:00:06]} 35. Re1+ {[%emt 0:00:04]} Kf6 {[%emt 0:00:15]} 36. h6 {[%emt 0:00:18]} Bc6 {[%emt 0:00:56]} 37. g5+ {[%emt 0:00:10]} 1-0

[Event "DVM U10 2024"]
[Site "Duesseldorf"]
[Date "2024.12.28"]
[Round "5"]
[White "Graf, Tom"]
[Black "Brucker, Oscar"]
[Result "1-0"]
[ECO "C50"]
[WhiteElo "1456"]
[BlackElo "1291"]
[Annotator "NA RC"]
[PlyCount "133"]
[EventDate "2024.12.23"]
[EventType "team-tourn"]
[EventRounds "7"]
[EventCountry "GER"]
[SourceTitle "playchess.com"]
[Source "ChessBase"]
[SourceQuality "1"]
[TimeControl "3300+5"]

1. e4 {[%emt 0:00:04]} e5 {[%emt 0:00:08]} 2. Nf3 {[%emt 0:00:07]} Nc6 {[%emt 0:00:09]} 3. Bc4 {[%emt 0:00:08]} Bc5 {[%emt 0:00:18]} 4. Nc3 {[%emt 0:00:12]} Nf6 {[%emt 0:00:12]} 5. O-O {[%emt 0:00:11]} d6 {[%emt 0:00:19]} 6. h3 {[%emt 0:00:09]} O-O {[%emt 0:00:10]} 7. d3 {[%emt 0:00:05]} h6 {[%emt 0:00:05]} 8. Be3 {[%emt 0:00:12]} Bxe3 {[%emt 0:00:17]} 9. fxe3 {[%emt 0:00:08]} Re8 {[%emt 0:00:13]} 10. Re1 {[%emt 0:00:27]} Be6 {[%emt 0:00:21]} 11. Bxe6 {[%emt 0:00:17]} Rxe6 {[%emt 0:00:08]} 12. Rf1 {[%emt 0:00:54]} d5 {[%emt 0:01:17]} 13. Nd2 {[%emt 0:03:40]} d4 {[%emt 0:02:51]} 14. exd4 {[%emt 0:00:24]} Qxd4+ {[%emt 0:02:58]} 15. Kh1 {[%emt 0:00:26]} a6 {[%emt 0:00:51]} 16. Nf3 {[%emt 0:00:45]} Qb6 {[%emt 0:01:11]} 17. Nd5 {[%emt 0:00:39]} Qa5 {[%emt 0:01:53]} 18. Nxf6+ {[%emt 0:00:57]} Rxf6 {[%emt 0:00:21]} 19. Nh4 {[%emt 0:01:36]} Re6 {[%emt 0:03:00]} 20. Rf2 {[%emt 0:02:53]} f6 {[%emt 0:02:30]} 21. Nf5 {[%emt 0:00:40]} Ne7 {[%emt 0:01:42]} 22. Nxe7+ {[%emt 0:02:26]} Rxe7 {[%emt 0:00:09]} 23. Qg4 {[%emt 0:00:41]} Qb6 {[%emt 0:00:58]} 24. Raf1 {[%emt 0:03:57]} Rf8 {[%emt 0:00:32]} 25. Rf5 {[%emt 0:02:01]} Kh7 {[%emt 0:04:31]} 26. b3 {[%emt 0:03:42]} Qe6 {[%emt 0:02:56]} 27. Qg3 {[%emt 0:01:59]} b5 {[%emt 0:01:45]} 28. R5f2 {[%emt 0:02:14]} c5 {[%emt 0:02:19]} 29. Qf3 {[%emt 0:04:17]} Rc8 {[%emt 0:02:45]} 30. Qf5+ {[%emt 0:00:51]} Qxf5 {[%emt 0:00:27]} 31. Rxf5 {[%emt 0:01:17]} c4 {[%emt 0:00:46]} 32. R5f2 {[%emt 0:00:49]} Rec7 {[%emt 0:01:40]} 33. Rd2 {[%emt 0:02:38]} cxb3 {[%emt 0:01:12]} 34. cxb3 {[%emt 0:00:15]} Rc2 {[%emt 0:00:05]} 35. Rff2 {[%emt 0:00:33]} Rxd2 {[%emt 0:02:35]} 36. Rxd2 {[%emt 0:00:11]} Kg6 {[%emt 0:00:04]} 37. Kh2 {[%emt 0:01:02]} Kg5 {[%emt 0:00:27]} 38. Kg3 {[%emt 0:00:05]} Rd8 {[%emt 0:00:05]} 39. h4+ {[%emt 0:00:05]} Kg6 {[%emt 0:00:05]} 40. Kh3 {[%emt 0:00:05]} f5 {[%emt 0:00:05]} 41. exf5+ {[%emt 0:00:05]} Kxf5 {[%emt 0:00:05]} 42. Kg3 {[%emt 0:00:05]} Rd4 {[%emt 0:00:05]} 43. Rf2+ {[%emt 0:00:05]} Ke6 {[%emt 0:00:05]} 44. Rd2 {[%emt 0:03:46]} e4 {[%emt 0:01:48]} 45. Kf4 {[%emt 0:00:05]} Rxd3 {[%emt 0:00:05]} 46. Re2 {[%emt 0:00:05]} e3 {[%emt 0:00:05]} 47. Rxe3+ {[%emt 0:00:05]} Rxe3 {[%emt 0:00:05]} 48. Kxe3 {[%emt 0:04:23]} Kf5 {[%emt 0:04:07]} 49. Kf3 {[%emt 0:00:05]} b4 {[%emt 0:00:22]} 50. g4+ {[%emt 0:00:08]} Ke5 {[%emt 0:00:15]} 51. Ke3 {[%emt 0:00:05]} a5 {[%emt 0:00:12]} 52. h5 {[%emt 0:00:09]} Kf6 {[%emt 0:00:21]} 53. Kf4 {[%emt 0:00:14]} g6 {[%emt 0:00:18]} 54. hxg6 {[%emt 0:00:37]} Kxg6 {[%emt 0:00:09]} 55. Kf3 {[%emt 0:00:05]} Kf6 {[%emt 0:00:33]} 56. Kf4 {[%emt 0:00:12]} Ke6 {[%emt 0:00:19]} 57. Ke4 {[%emt 0:00:10]} Ke7 {[%emt 0:00:36]} 58. Kd5 {[%emt 0:00:12]} Kd7 {[%emt 0:00:25]} 59. Kc5 {[%emt 0:00:09]} Kc7 {[%emt 0:00:09]} 60. Kb5 {[%emt 0:00:12]} Kd6 {[%emt 0:01:05]} 61. Kxa5 {[%emt 0:00:21]} Kc5 {[%emt 0:00:13]} 62. Ka4 {[%emt 0:00:14]} Kd4 {[%emt 0:00:10]} 63. Kxb4 {[%emt 0:00:04]} Ke4 {[%emt 0:00:06]} 64. a4 {[%emt 0:00:04]} Kd5 {[%emt 0:00:00]} 65. Kb5 {[%emt 0:00:01]} Ke4 {[%emt 0:00:00]} 66. a5 {[%emt 0:00:01]} Kf4 {[%emt 0:00:01]} 67. a6 {[%emt 0:00:02]} 1-0

[Event "DVM U10 2024"]
[Site "Duesseldorf"]
[Date "2024.12.28"]
[Round "5"]
[White "Aslanov, Kamran"]
[Black "Fredrich, Tarje"]
[Result "1-0"]
[ECO "C50"]
[WhiteElo "1451"]
[BlackElo "1056"]
[Annotator "NA RC"]
[PlyCount "75"]
[EventDate "2024.12.23"]
[EventType "team-tourn"]
[EventRounds "7"]
[EventCountry "GER"]
[SourceTitle "playchess.com"]
[Source "ChessBase"]
[SourceQuality "1"]
[TimeControl "3300+5"]

1. e4 {[%emt 0:00:04]} e5 {[%emt 0:00:11]} 2. Nf3 {[%emt 0:00:02]} Nc6 {[%emt 0:00:13]} 3. Bc4 {[%emt 0:00:02]} Bc5 {[%emt 0:00:14]} 4. Nc3 {[%emt 0:00:12]} Nf6 {[%emt 0:00:25]} 5. d3 {[%emt 0:00:03]} h6 {[%emt 0:00:10]} 6. O-O {[%emt 0:00:03]} d6 {[%emt 0:00:12]} 7. h3 {[%emt 0:00:02]} Be6 {[%emt 0:00:15]} 8. Bb3 {[%emt 0:00:01]} O-O {[%emt 0:00:13]} 9. Be3 {[%emt 0:00:07]} Nd4 {[%emt 0:00:20]} 10. Bxd4 {[%emt 0:06:06]} exd4 {[%emt 0:00:30]} 11. Ne2 {[%emt 0:00:10]} d5 {[%emt 0:00:27]} 12. e5 {[%emt 0:01:44]} Nd7 {[%emt 0:00:28]} 13. Re1 {[%emt 0:00:25]} f6 {[%emt 0:01:30]} 14. Nexd4 {[%emt 0:01:47]} Qe7 {[%emt 0:06:57]} 15. exf6 {[%emt 0:05:08]} Nxf6 {[%emt 0:00:00]} 16. Rxe6 {[%emt 0:03:12]} Qd7 {[%emt 0:00:00]} 17. Qe1 {[%emt 0:02:24]} a5 {[%emt 0:00:00]} 18. a4 {[%emt 0:00:19]} Rad8 {[%emt 0:00:00]} 19. Qxa5 {[%emt 0:10:58]} Bxd4 {[%emt 0:00:00]} 20. Nxd4 {[%emt 0:00:57]} b6 {[%emt 0:00:00]} 21. Qe1 {[%emt 0:01:05]} c5 {[%emt 0:00:00]} 22. Nc6 {[%emt 0:05:38]} Rde8 {[%emt 0:00:00]} 23. Ne7+ {[%emt 0:01:44]} Kh8 {[%emt 0:00:00]} 24. Ng6+ {[%emt 0:00:22]} Kg8 {[%emt 0:00:00]} 25. Nxf8 {[%emt 0:00:41]} Rxf8 {[%emt 0:00:00]} 26. Qe5 {[%emt 0:00:35]} Rd8 {[%emt 0:00:00]} 27. c4 {[%emt 0:01:25]} Qf7 {[%emt 0:00:13]} 28. cxd5 {[%emt 0:01:09]} Rc8 {[%emt 0:00:42]} 29. d6 {[%emt 0:00:50]} Nd7 {[%emt 0:00:30]} 30. Re8+ {[%emt 0:00:39]} Rxe8 {[%emt 0:00:53]} 31. Qxe8+ {[%emt 0:00:09]} Nf8 {[%emt 0:00:12]} 32. Qxf7+ {[%emt 0:00:09]} Kh7 {[%emt 0:00:28]} 33. Qxf8 {[%emt 0:00:32]} c4 {[%emt 0:00:14]} 34. dxc4 {[%emt 0:00:07]} b5 {[%emt 0:00:09]} 35. Bc2+ {[%emt 0:00:13]} g6 {[%emt 0:01:08]} 36. Qf7+ {[%emt 0:00:00]} Kh8 {[%emt 0:00:40]} 37. Qxg6 {[%emt 0:00:20]} b4 {[%emt 0:00:12]} 38. Qh7# {[%emt 0:00:31]} 1-0

[Event "DVM U10 2024"]
[Site "Duesseldorf"]
[Date "2024.12.28"]
[Round "5"]
[White "Wittenberger, Henri"]
[Black "Sriram, Yashasri"]
[Result "1/2-1/2"]
[ECO "C01"]
[WhiteElo "1421"]
[BlackElo "1520"]
[Annotator "NA RC"]
[PlyCount "136"]
[EventDate "2024.12.23"]
[EventType "team-tourn"]
[EventRounds "7"]
[EventCountry "GER"]
[SourceTitle "playchess.com"]
[Source "ChessBase"]
[SourceQuality "1"]
[TimeControl "3300+5"]

1. e4 {[%emt 0:00:04]} e6 {[%emt 0:01:12]} 2. d4 {[%emt 0:00:22]} d5 {[%emt 0:00:16]} 3. exd5 {[%emt 0:00:16]} exd5 {[%emt 0:00:18]} 4. Nf3 {[%emt 0:00:15]} Bd6 {[%emt 0:00:16]} 5. Bd3 {[%emt 0:00:22]} Nf6 {[%emt 0:00:34]} 6. O-O {[%emt 0:00:44]} O-O {[%emt 0:00:12]} 7. Bg5 {[%emt 0:00:47]} Bg4 {[%emt 0:00:14]} 8. Nbd2 {[%emt 0:00:36]} Nc6 {[%emt 0:00:46]} 9. c3 {[%emt 0:00:23]} h6 {[%emt 0:00:59]} 10. Bh4 {[%emt 0:00:56]} a6 {[%emt 0:02:24]} 11. Qc2 {[%emt 0:01:53]} b5 {[%emt 0:02:34]} 12. a3 {[%emt 0:01:19]} Na5 {[%emt 0:01:05]} 13. Ne5 {[%emt 0:01:39]} Bxe5 {[%emt 0:00:56]} 14. dxe5 {[%emt 0:00:26]} g5 {[%emt 0:00:15]} 15. exf6 {[%emt 0:01:37]} gxh4 {[%emt 0:00:34]} 16. Bf5 {[%emt 0:02:33]} Be2 {[%emt 0:01:48]} 17. Rfe1 {[%emt 0:04:19]} Re8 {[%emt 0:00:49]} 18. b4 {[%emt 0:08:36]} Nc6 {[%emt 0:01:23]} 19. Bd3 {[%emt 0:04:12]} Bxd3 {[%emt 0:01:12]} 20. Rxe8+ {[%emt 0:00:05]} Qxe8 {[%emt 0:00:15]} 21. Qxd3 {[%emt 0:00:09]} Qe5 {[%emt 0:01:45]} 22. Qf3 {[%emt 0:01:44]} Re8 {[%emt 0:00:38]} 23. Rc1 {[%emt 0:02:47]} Re6 {[%emt 0:01:25]} 24. Qg4+ {[%emt 0:03:01]} Qg5 {[%emt 0:01:34]} 25. Qxg5+ {[%emt 0:00:01]} hxg5 {[%emt 0:00:10]} 26. Nf3 {[%emt 0:00:23]} g4 {[%emt 0:00:26]} 27. Nxh4 {[%emt 0:00:27]} Rxf6 {[%emt 0:00:12]} 28. g3 {[%emt 0:01:13]} Ne5 {[%emt 0:01:46]} 29. Re1 {[%emt 0:01:33]} Nc4 {[%emt 0:03:26]} 30. Re8+ {[%emt 0:01:02]} Kg7 {[%emt 0:00:20]} 31. Rc8 {[%emt 0:00:25]} Rc6 {[%emt 0:01:43]} 32. Nf5+ {[%emt 0:01:21]} Kf6 {[%emt 0:00:41]} 33. Nd4 {[%emt 0:00:28]} Rd6 {[%emt 0:01:47]} 34. Rxc7 {[%emt 0:00:54]} Nxa3 {[%emt 0:00:23]} 35. Rc6 {[%emt 0:01:31]} Rxc6 {[%emt 0:02:17]} 36. Nxc6 {[%emt 0:00:02]} Nb1 {[%emt 0:00:20]} 37. Nb8 {[%emt 0:00:07]} Nxc3 {[%emt 0:00:09]} 38. Nxa6 {[%emt 0:00:13]} Na2 {[%emt 0:01:16]} 39. Nc7 {[%emt 0:01:45]} Nxb4 {[%emt 0:00:31]} 40. Nxb5 {[%emt 0:00:12]} Ke5 {[%emt 0:00:12]} 41. Nc3 {[%emt 0:01:58]} d4 {[%emt 0:00:39]} 42. Nd1 {[%emt 0:00:57]} d3 {[%emt 0:00:41]} 43. Ne3 {[%emt 0:02:29]} Nc2 {[%emt 0:02:00]} 44. Nd1 {[%emt 0:00:55]} Ke4 {[%emt 0:02:00]} 45. Kg2 {[%emt 0:00:34]} Ne1+ {[%emt 0:03:21]} 46. Kf1 {[%emt 0:00:19]} Nf3 {[%emt 0:00:24]} 47. Ne3 {[%emt 0:00:49]} Nd4 {[%emt 0:02:13]} 48. Ke1 {[%emt 0:00:14]} Nc2+ {[%emt 0:00:25]} 49. Kd2 {[%emt 0:00:07]} Nxe3 {[%emt 0:00:13]} 50. fxe3 {[%emt 0:00:01]} Kf3 {[%emt 0:00:24]} 51. Kxd3 {[%emt 0:00:01]} Kg2 {[%emt 0:00:15]} 52. Ke4 {[%emt 0:00:01]} Kxh2 {[%emt 0:00:59]} 53. Kf4 {[%emt 0:00:01]} Kh3 {[%emt 0:00:14]} 54. e4 {[%emt 0:00:00]} f6 {[%emt 0:00:14]} 55. Kf5 {[%emt 0:00:18]} Kxg3 {[%emt 0:00:12]} 56. Kxf6 {[%emt 0:00:01]} Kf4 {[%emt 0:00:16]} 57. e5 {[%emt 0:00:02]} g3 {[%emt 0:00:26]} 58. e6 {[%emt 0:00:01]} g2 {[%emt 0:00:05]} 59. e7 {[%emt 0:00:01]} g1=Q {[%emt 0:00:09]} 60. e8=Q {[%emt 0:00:03]} Qg5+ {[%emt 0:00:16]} 61. Kf7 {[%emt 0:00:01]} Qh5+ {[%emt 0:00:19]} 62. Ke7 {[%emt 0:00:03]} Qe5+ {[%emt 0:00:05]} 63. Kf7 {[%emt 0:00:02]} Qc7+ {[%emt 0:00:09]} 64. Qe7 {[%emt 0:00:02]} Qc4+ {[%emt 0:00:21]} 65. Qe6 {[%emt 0:00:01]} Qc7+ {[%emt 0:00:18]} 66. Qe7 {[%emt 0:00:00]} Qc4+ {[%emt 0:00:11]} 67. Qe6 {[%emt 0:00:01]} Qc7+ {[%emt 0:00:09]} 68. Qe7 {[%emt 0:00:02]} Qc4+ {[%emt 0:01:05]} 1/2-1/2

[Event "DVM U10 2024"]
[Site "Duesseldorf"]
[Date "2024.12.28"]
[Round "5"]
[White "Lüttgen, Jona"]
[Black "Bauta, Luan"]
[Result "1-0"]
[ECO "D38"]
[WhiteElo "1412"]
[BlackElo "1063"]
[Annotator "NA RC"]
[PlyCount "114"]
[EventDate "2024.12.23"]
[EventType "team-tourn"]
[EventRounds "7"]
[EventCountry "GER"]
[SourceTitle "playchess.com"]
[Source "ChessBase"]
[SourceQuality "1"]
[TimeControl "3300+5"]

1. d4 {[%emt 0:00:02]} d5 {[%emt 0:00:07]} 2. c4 {[%emt 0:00:04]} e6 {[%emt 0:00:09]} 3. Nc3 {[%emt 0:00:05]} Nf6 {[%emt 0:00:16]} 4. Bf4 {[%emt 0:00:25]} Bb4 {[%emt 0:00:43]} 5. Nf3 {[%emt 0:00:31]} Bxc3+ {[%emt 0:00:21]} 6. bxc3 {[%emt 0:00:07]} O-O {[%emt 0:00:38]} 7. h4 {[%emt 0:00:51]} dxc4 {[%emt 0:00:59]} 8. e3 {[%emt 0:00:24]} Qd5 {[%emt 0:01:08]} 9. Bxc7 {[%emt 0:01:32]} Nc6 {[%emt 0:01:02]} 10. Qc2 {[%emt 0:02:30]} Ne4 {[%emt 0:01:22]} 11. Ng5 {[%emt 0:00:25]} Nxg5 {[%emt 0:00:43]} 12. hxg5 {[%emt 0:00:11]} g6 {[%emt 0:00:11]} 13. Bf4 {[%emt 0:01:58]} e5 {[%emt 0:01:10]} 14. dxe5 {[%emt 0:02:36]} Nxe5 {[%emt 0:00:16]} 15. Rd1 {[%emt 0:01:45]} Nd3+ {[%emt 0:02:16]} 16. Bxd3 {[%emt 0:01:50]} cxd3 {[%emt 0:00:05]} 17. Qxd3 {[%emt 0:03:49]} Qxg2 {[%emt 0:00:22]} 18. Qf1 {[%emt 0:00:33]} Qxf1+ {[%emt 0:01:01]} 19. Kxf1 {[%emt 0:00:11]} Bg4 {[%emt 0:00:09]} 20. Re1 {[%emt 0:00:42]} Rad8 {[%emt 0:00:24]} 21. Kg2 {[%emt 0:00:55]} Rd2 {[%emt 0:00:34]} 22. Be5 {[%emt 0:00:59]} Bf5 {[%emt 0:00:22]} 23. Kg3 {[%emt 0:01:11]} Bd3 {[%emt 0:00:39]} 24. Bf6 {[%emt 0:01:23]} h5 {[%emt 0:00:37]} 25. gxh6 {[%emt 0:00:21]} Kh7 {[%emt 0:00:10]} 26. Rd1 {[%emt 0:03:35]} Rxd1 {[%emt 0:00:24]} 27. Rxd1 {[%emt 0:00:06]} Bc4 {[%emt 0:00:48]} 28. Bg7 {[%emt 0:00:21]} Rc8 {[%emt 0:00:19]} 29. a3 {[%emt 0:00:33]} Bb3 {[%emt 0:01:11]} 30. Rd4 {[%emt 0:02:37]} b6 {[%emt 0:00:13]} 31. Rd7 {[%emt 0:01:13]} a5 {[%emt 0:00:23]} 32. Rb7 {[%emt 0:00:34]} Be6 {[%emt 0:02:24]} 33. Rxb6 {[%emt 0:01:10]} a4 {[%emt 0:01:00]} 34. Rb4 {[%emt 0:02:18]} Bb3 {[%emt 0:00:11]} 35. Rb7 {[%emt 0:02:10]} Bd5 {[%emt 0:00:26]} 36. Re7 {[%emt 0:00:59]} Bc4 {[%emt 0:01:04]} 37. Kf4 {[%emt 0:01:19]} Be2 {[%emt 0:00:18]} 38. Rxf7 {[%emt 0:01:36]} Rc4+ {[%emt 0:00:20]} 39. Kg3 {[%emt 0:00:54]} Rg4+ {[%emt 0:00:09]} 40. Kh3 {[%emt 0:00:27]} g5 {[%emt 0:00:20]} 41. Bf8+ {[%emt 0:01:09]} Kg6 {[%emt 0:00:17]} 42. Rg7+ {[%emt 0:02:54]} Kxh6 {[%emt 0:00:49]} 43. f3 {[%emt 0:01:30]} Rg1 {[%emt 0:01:18]} 44. Kh2 {[%emt 0:01:01]} Rc1 {[%emt 0:00:05]} 45. Kg3 {[%emt 0:00:05]} Ra1 {[%emt 0:00:05]} 46. Ra7+ {[%emt 0:00:05]} Kg6 {[%emt 0:00:05]} 47. Rxa4 {[%emt 0:00:05]} Rf1 {[%emt 0:00:05]} 48. f4 {[%emt 0:00:05]} gxf4+ {[%emt 0:00:05]} 49. Rxf4 {[%emt 0:00:05]} Rxf4 {[%emt 0:00:05]} 50. Kxf4 {[%emt 0:00:05]} Bc4 {[%emt 0:00:05]} 51. Ke5 {[%emt 0:00:05]} Kf7 {[%emt 0:00:05]} 52. Bc5 {[%emt 0:00:05]} Ke8 {[%emt 0:00:05]} 53. a4 {[%emt 0:00:05]} Ba6 {[%emt 0:00:05]} 54. Kd6 {[%emt 0:00:05]} Bd3 {[%emt 0:00:05]} 55. Ke5 {[%emt 0:03:48]} Ba6 {[%emt 0:05:30]} 56. Kd6 {[%emt 0:00:11]} Bd3 {[%emt 0:00:18]} 57. Bd4 {[%emt 0:00:04]} Kf7 {[%emt 0:00:12]} 1-0